Workbook

Sheet 2020
C2: Расчет субсидий на выполнение муниципального задания Тонкинского муниципального района на 2020 год
C6: Наименование учреждения | D6: Наименование муниципальной услуги | F6: Ед. изм. натуральных показателей | G6: Натуральные показатели | H6: Нормативные затраты, руб. | I6: Сумма субсидии, руб.
C8: МАОУ "Тонкинская ОШ" | D8: Реализация основных общеобразовательных программ начального общего образования | E8: Обучающиеся, за исключением обучающихся с ограниченными возможностями здоровья (ОВЗ) и детей -инвалидов | F8: чел. | G8: 243 | H8: 55671 | I8: =G8*H8 -> 13528053
E9: дети-инвалиды | F9: чел. | G9: 3 | H9: 56041 | I9: =G9*H9 -> 168123
E10: Обучающиеся с ограниченными возможностями здоровья (ОВЗ) | F10: чел. | G10: 8 | H10: 116968 | I10: 935744
D11: Реализация основных общеобразовательных программ основного общего образования | E11: Обучающиеся, за исключением обучающихся с ограниченными возможностями здоровья (ОВЗ) и детей -инвалидов | F11: чел. | G11: 285 | H11: 66161 | I11: 18855885
E12: дети-инвалиды | F12: чел. | G12: 7 | H12: 67090 | I12: 469630
E13: Обучающиеся с ограниченными возможностями здоровья (ОВЗ) | F13: чел. | G13: 5 | H13: 142200 | I13: 711000
D14: Реализация основных общеобразовательных программ среднего общего образования | E14: Обучающиеся, за исключением обучающихся с ограниченными возможностями здоровья (ОВЗ) и детей -инвалидов | F14: чел. | G14: 39 | H14: 66979 | I14: 2612181
D15: Итого | G15: =SUM(G8:G14) -> 590 | I15: =SUM(I8:I14) -> 37280616
C16: МБОУ "Пакалевская ОШ" | D16: Реализация основных общеобразовательных программ начального общего образования | E16: Обучающиеся, за исключением обучающихся с ограниченными возможностями здоровья (ОВЗ) и детей -инвалидов | F16: чел. | G16: 4 | H16: 430542 | I16: 1722168
E17: Обучающиеся с ограниченными возможностями здоровья (ОВЗ) | G17: 3 | H17: 43289 | I17: 129867
D18: Реализация основных общеобразовательных программ основного общего образования | E18: Обучающиеся, за исключением обучающихся с ограниченными возможностями здоровья (ОВЗ) и детей -инвалидов | F18: чел. | G18: 5 | H18: 817979 | I18: 4089895
D19: Реализация основных общеобразовательных программ дошкольного образования | F19: чел. | G19: 7 | H19: 331122 | I19: 2317854
D20: Присмотр и уход | F20: чел. | G20: 7 | H20: 82211 | I20: 575477
D21: Итого | G21: =SUM(G16:G20) -> 26 | I21: =SUM(I16:I20) -> 8835261
C22: МБОУ "Вязовская ОШ" | D22: Реализация основных общеобразовательных программ начального общего образования | E22: Обучающиеся, за исключением обучающихся с ограниченными возможностями здоровья (ОВЗ) и детей -инвалидов | F22: чел. | G22: 16 | H22: 183708 | I22: 2939328
D23: Реализация основных общеобразовательных программ основного общего образования | E23: Обучающиеся, за исключением обучающихся с ограниченными возможностями здоровья (ОВЗ) и детей -инвалидов | F23: чел. | G23: 15 | H23: 317133 | I23: 4756995
E24: дети-инвалиды | F24: чел. | G24: 1 | H24: 315268 | I24: 315268
D25: Реализация основных общеобразовательных программ дошкольного образования | F25: чел. | G25: 16 | H25: 150608 | I25: 2409728
D26: Присмотр и уход | F26: чел. | G26: 16 | H26: 63248 | I26: 1011968
D27: Итого | G27: =SUM(G22:G26) -> 64 | I27: =SUM(I22:I26) -> 11433287
C28: МБОУ "Бердниковская ОШ" | D28: Реализация основных общеобразовательных программ начального общего образования | E28: Обучающиеся, за исключением обучающихся с ограниченными возможностями здоровья (ОВЗ) и детей -инвалидов | F28: чел. | G28: 20 | H28: 111100 | I28: =G28*H28 -> 2222000
D29: Реализация основных общеобразовательных программ основного общего образования | E29: Обучающиеся, за исключением обучающихся с ограниченными возможностями здоровья (ОВЗ) и детей -инвалидов | F29: чел. | G29: 17 | H29: 300654 | I29: =G29*H29 -> 5111118
E30: дети-инвалиды | F30: чел. | G30: 1 | H30: 284394 | I30: 284394
D31: Итого | G31: 38 | I31: =SUM(I28:I30) -> 7617512
C32: МБОУ "Пахутинская ОШ" | D32: Реализация основных общеобразовательных программ начального общего образования | E32: Обучающиеся, за исключением обучающихся с ограниченными возможностями здоровья (ОВЗ) и детей -инвалидов | F32: чел. | G32: 6 | H32: 333381 | I32: 2000286
E33: дети-инвалиды | G33: 1 | H33: 351848 | I33: 351848
D34: Реализация основных общеобразовательных программ основного общего образования | E34: Обучающиеся, за исключением обучающихся с ограниченными возможностями здоровья (ОВЗ) и детей -инвалидов | F34: чел. | G34: 6 | H34: 660023 | I34: 3960138
D35: Реализация основных общеобразовательных программ дошкольного образования | F35: чел. | G35: 4 | H35: 353794 | I35: 1415176
D36: Присмотр и уход | F36: чел. | G36: 4 | H36: 121853 | I36: 487412
D37: Итого | G37: 21 | I37: =SUM(I32:I36) -> 8214860
C38: МБОУ "Большесодомовская ОШ" | D38: Реализация основных общеобразовательных программ начального общего образования | E38: Обучающиеся, за исключением обучающихся с ограниченными возможностями здоровья (ОВЗ) и детей -инвалидов | F38: чел. | G38: 14 | H38: 153076 | I38: 2143064
D39: Реализация основных общеобразовательных программ основного общего образования | E39: Обучающиеся, за исключением обучающихся с ограниченными возможностями здоровья (ОВЗ) и детей -инвалидов | F39: чел. | G39: 16 | H39: 326289 | I39: 5220624
D40: Реализация основных общеобразовательных программ дошкольного образования | F40: чел. | G40: 10 | H40: 213551 | I40: 2135510
D41: Присмотр и уход | F41: чел. | G41: 10 | H41: 60907 | I41: 609070
D42: Итого | G42: 50 | I42: =SUM(I38:I41) -> 10108268
C43: МБДОУ д/с №1 "Теремок" | D43: Реализация основных общеобразовательных программ дошкольного образования | F43: чел. | G43: 98 | H43: 73091 | I43: =H43*G43 -> 7162918
D44: Присмотр и уход | F44: чел. | G44: 98 | H44: 25401 | I44: =H44*G44 -> 2489298
D45: Итого | G45: 196 | I45: =SUM(I43:I44) -> 9652216
C46: МБДОУ д/с №2 "Малышок" | D46: Реализация основных общеобразовательных программ дошкольного образования | F46: чел. | G46: 33 | H46: 138624 | I46: =H46*G46 -> 4574592
D47: Присмотр и уход | F47: чел. | G47: 33 | H47: 56654 | I47: =H47*G47 -> 1869582
D48: Итого | G48: 66 | I48: =SUM(I46:I47) -> 6444174
C49: МБДОУ д/с №4 "Солнышко" | D49: Реализация основных общеобразовательных программ дошкольного образования | F49: чел. | G49: 111 | H49: 89501 | I49: =H49*G49 -> 9934611
D50: Присмотр и уход | F50: чел. | G50: 111 | H50: 33633 | I50: =H50*G50 -> 3733263
D51: Итого | G51: 222 | I51: =SUM(I49:I50) -> 13667874
C52: МБДОУ д/с №5 "Сказка" | D52: Реализация основных общеобразовательных программ дошкольного образования | F52: чел. | G52: 55 | H52: 93388 | I52: =H52*G52 -> 5136340
D53: Присмотр и уход | F53: чел. | G53: 55 | H53: 34336 | I53: =H53*G53 -> 1888480
D54: Итого | G54: 110 | I54: =SUM(I52:I53) -> 7024820
C55: МБДОУ д/с №8 "Елочка" | D55: Реализация основных общеобразовательных программ дошкольного образования | F55: чел. | G55: 19 | H55: 158921 | I55: =H55*G55 -> 3019499
D56: Присмотр и уход | F56: чел. | G56: 19 | H56: 58293 | I56: =H56*G56 -> 1107567
D57: Итого | G57: 38 | I57: =SUM(I55:I56) -> 4127066
C58: МБУ ДО ЦДО | D58: реализация дополнительных общеразвивающих программ | F58: чел.-час | G58: 116888 | H58: 79 | I58: =G58*H58 -> 9234152
D59: Итого | G59: 116888 | I59: 9234152
C60: МБУ ХЭС СО | D60: Содержание (эксплуатация) имущества, находящегося в государственной (муниципальной ) собственности | F60: ед. | G60: 11 | H60: 1191586 | I60: =G60*H60 -> 13107446
D61: Итого | G61: 11 | I61: 13107446
C62: Культура | G62: =G65+G68+G71+G73+G75 -> 304818 | H62: =I62/G62 -> 153.5097487 | I62: =I65+I68+I71+I73+I75 -> 46792534.58
C63: МБУК«МЦКС» | D63: Организация деятельности клубных формирований и формирований самодеятельного творчества | F63: ед. | G63: 142 | H63: 127239.75 | I63: =G63*H63 -> 18068044.5
D64: Организация и проведение культурно-массовых мероприятий | F64: чел. | G64: 199800 | H64: 27.98 | I64: =G64*H64 -> 5590404
C65: Итого: | G65: =SUM(G63:G64) -> 199942 | H65: =I65/G65 -> 118.3265572 | I65: =SUM(I63:I64) -> 23658448.5
C66: МБУК «НКМ» | D66: Публичный показ музейных предметов, музейных колекций | F66: чел. | G66: 10850 | H66: 19.37 | I66: =G66*H66 -> 210164.5
D67: Формирование учет, изучение, обеспечение физического сохранения и безопасности музейных предметов, музейных коллекций | F67: ед. | G67: 4395 | H67: 583.56 | I67: 2564746.2
C68: Итого: | G68: =SUM(G66:G67) -> 15245 | H68: =I68/G68 -> 182.0210364 | I68: =SUM(I66:I67) -> 2774910.7
C69: МБУК «МЦБС» | D69: Библиотечное, библиографическое и информационное обслуживание пользователей библиотеки | F69: чел. | G69: 65000 | H69: 94.77 | I69: =G69*H69 -> 6160050
D70: Библиографическая обработка документов и создание каталогов | F70: ед. | G70: 24520 | H70: 245.5 | I70: 6019660
C71: Итого: | G71: =SUM(G69:G70) -> 89520 | H71: =I71/G71 -> 136.0557417 | I71: =SUM(I69:I70) -> 12179710
C72: МБУ ДО "ДМШ" | D72: Реализация дополнительных общеобразовательных предпрофесиональных программ в области исскуств | F72: чел. | G72: 65 | H72: 74872.88 | I72: =G72*H72 -> 4866737.2
C73: Итого: | G73: =SUM(G72) -> 65 | H73: =I73/G73 -> 74872.88 | I73: =SUM(I72) -> 4866737.2
C74: МБУ ДО "ДХШ" | D74: Реализация дополнительных общеобразовательных предпрофесиональных программ в области исскуств | F74: чел. | G74: 46 | H74: 72015.83 | I74: =G74*H74 -> 3312728.18
C75: Итого: | G75: =SUM(G74) -> 46 | H75: =I75/G75 -> 72015.83 | I75: =SUM(I74) -> 3312728.18
C76: Спорт | G76: =SUM(G77:G80) -> 152 | H76: 20819.98421 | I76: =SUM(I77:I80) -> 3164637.6
C77: МБУ ФСК «Кристалл». | D77: Организация и проведение Официальных Физкультурных (физкультурно-оздоровительных) мероприятий | F77: количество мероприятий | G77: 32 | H77: 89519.91 | I77: =G77*H77 -> 2864637.12
D78: Организация и проведение официальных спортивных мероприятий | F78: количество мероприятий | G78: 108 | H78: 2685.19 | I78: 290000.52
D79: Проведение тестирования выполнения нормативов испытаний (тестов) комплекса ГТО | F79: количество мероприятий | G79: 12 | H79: 833.33 | I79: 9999.96
D80: Организация и проведение Физкультурных и спортивных мероприятий в рамках Всероссийского физкультурно-спортивного комплекса «Готов к труду и обороне» (ГТО) (за исключением тестирования выполнения нормативов испытаний комплекса ГТО) | F80: количество мероприятий | G80: 0 | H80: 0 | I80: 0
C81: Итого: | G81: =SUM(G77:G80) -> 152 | H81: =I81/G81 -> 20819.98421 | I81: =SUM(I77:I80) -> 3164637.6

Sheet Лист1
A2: Расчет субсидий на выполнение муниципального задания Тонкинского муниципального района на 2019 год
A4: Наименование учреждения | B4: Наименование муниципальной услуги | C4: Ед. изм. натуральных показателей | D4: Натуральные показатели | E4: Нормативные затраты, руб. | F4: Сумма субсидии, руб.
A5: Культура | D5: =D8+D11+D15+D17+D19 -> 0 | E5: =F5/D5 ->  | F5: =F8+F11+F15+F17+F19 -> 0
A6: МБУК«МЦКС» | B6: Организация деятельности клубных формирований и формирований самодеятельного творчества | C6: ед. | F6: =D6*E6 -> 0
B7: Организация и проведение культурно-массовых мероприятий | C7: чел. | F7: =D7*E7 -> 0
A8: Итого: | D8: =SUM(D6:D7) -> 0 | E8: =F8/D8 ->  | F8: =SUM(F6:F7) -> 0
A9: МБУК «НКМ» | B9: Публичный показ музейных предметов, музейных колекций | C9: чел. | F9: =D9*E9 -> 0
B10: Формирование учет, изучение, обеспечение физического сохранения и безопасности музейных предметов, музейных коллекций | C10: ед. | F10: 0
A11: Итого: | D11: =SUM(D9:D10) -> 0 | E11: =F11/D11 ->  | F11: =SUM(F9:F10) -> 0
A12: МБУК «МЦБС» | B12: Библиотечное, библиографическое и информационное обслуживание пользователей библиотеки | C12: чел. | F12: =D12*E12 -> 0
B13: Формирование, учет, изучение, обеспечение физического сохранения и безопасности фондов библиотек, включая оцифровку фондов | C13: ед. | F13: 0
B14: Библиографическая обработка документов и создание каталогов | C14: ед. | F14: 0
A15: Итого: | D15: =SUM(D12:D14) -> 0 | E15: =F15/D15 ->  | F15: =SUM(F12:F14) -> 0
A16: МБУ ДО "ДМШ" | B16: Реализация дополнительных общеобразовательных предпрофесиональных программ в области исскуств | C16: чел. | F16: =D16*E16 -> 0
A17: Итого: | D17: =SUM(D16) -> 0 | E17: =F17/D17 ->  | F17: =SUM(F16) -> 0
A18: МБУ ДО "ДХШ" | B18: Реализация дополнительных общеобразовательных предпрофесиональных программ в области исскуств | C18: чел. | F18: =D18*E18 -> 0
A19: Итого: | D19: =SUM(D18) -> 0 | E19: =F19/D19 ->  | F19: =SUM(F18) -> 0
A20: Спорт | D20: =SUM(D21:D24) -> 0 | F20: =SUM(F21:F24) -> 0
A21: МБУ ФСК «Кристалл». | B21: Организация и проведение Официальных Физкультурных (физкультурно-оздоровительных) мероприятий | C21: количество мероприятий | F21: =D21*E21 -> 0
B22: Организация и проведение официальных спортивных мероприятий | C22: количество мероприятий | F22: 0
B23: Проведение тестирования выполнения нормативов испытаний (тестов) комплекса ГТО | C23: количество мероприятий | F23: 0
B24: Организация и проведение Физкультурных и спортивных мероприятий в рамках Всероссийского физкультурно-спортивного комплекса «Готов к труду и обороне» (ГТО) (за исключением тестирования выполнения нормативов испытаний комплекса ГТО) | C24: количество мероприятий | F24: 0
A25: Итого: | D25: =SUM(D21:D24) -> 0 | E25: =F25/D25 ->  | F25: =SUM(F21:F24) -> 0
